bitfinex/quotes_BTCUSD_20250512
["timestamp","ask_amount","ask_price","bid_price","bid_amount"]
[1747053325273,0.2211529,104000.0,103990.0,1.02088408]
[1747053326294,0.2211529,104000.0,103990.0,1.21321026]
[1747053326483,0.2211529,104000.0,103990.0,1.22282647]
[1747053326670,0.2211529,104000.0,103990.0,1.23244259]
[1747053326875,0.2211529,104000.0,103990.0,1.01464271]
[1747053327094,0.2211529,104000.0,103990.0,0.89244259]
[1747053328270,0.2211529,104000.0,103990.0,0.88282647]
[1747053328509,0.23076828,104000.0,103990.0,0.89244259]
[1747053328978,0.23076828,104000.0,103990.0,0.88282647]
[1747053329176,0.23076828,104000.0,103990.0,0.89244259]
[1747053329410,0.23076828,104000.0,103990.0,0.59720625]
[1747053329634,0.21153836,104000.0,103990.0,0.401]
[1747053329861,0.21153836,104000.0,103990.0,0.56110625]
[1747053330295,0.23123836,104000.0,103990.0,0.401]
[1747053330505,0.24983836,104000.0,103990.0,0.56110625]
[1747053330755,0.22779536,104000.0,103990.0,0.56110625]
[1747053331187,0.22779536,104000.0,103990.0,0.56010625]
[1747053332440,0.22779536,104000.0,103990.0,0.90010625]
[1747053333093,0.36164966,104000.0,103990.0,0.4]
[1747053333332,0.59932192,104000.0,103990.0,0.4]
[1747053333545,0.2115981,103970.0,103960.0,0.42254452]
[1747053333770,0.20197481,103990.0,103980.0,0.19234468]
[1747053333986,0.23082234,103990.0,103980.0,0.19820625]
[1747053334404,0.23082234,103990.0,103980.0,0.18922348]
[1747053334641,0.23082234,103990.0,103980.0,0.17960625]
[1747053334863,0.22120668,103990.0,103980.0,0.17960625]
[1747053335164,0.22120668,103990.0,103980.0,0.16010625]
[1747053335370,0.22120668,103990.0,103980.0,0.46510808]
[1747053335587,0.22120668,103990.0,103980.0,0.26314617]
[1747053336345,0.21159093,103990.0,103980.0,0.24404617]
[1747053336549,0.21259093,103990.0,103980.0,0.24404617]
[1747053337373,0.21259093,103990.0,103980.0,0.66414617]
[1747053338150,0.21259093,103990.0,103980.0,0.68404617]
[1747053341973,0.21259093,103990.0,103980.0,0.44]
[1747053342201,0.2029749,103990.0,103980.0,0.68404617]
[1747053342758,0.2029749,103990.0,103980.0,0.44]
[1747053348523,0.2029749,103990.0,103980.0,0.4199]
[1747053348739,0.1933586,103990.0,103980.0,0.4]
[1747053349578,0.2125586,103990.0,103980.0,0.4]
[1747053349980,0.21157886,103980.0,103970.0,0.60384617]
[1747053350194,0.21157831,103980.0,103970.0,0.80587643]
[1747053350398,0.22119489,103980.0,103970.0,1.20587643]
[1747053350602,0.23081193,103980.0,103970.0,1.21549449]
[1747053350808,0.22119489,103980.0,103970.0,1.22511246]
[1747053351013,0.23081193,103980.0,103970.0,1.21549449]
[1747053351437,0.22119489,103980.0,103970.0,1.24421246]
[1747053351620,0.21157812,103980.0,103970.0,1.25483034]
[1747053351823,0.21157803,103980.0,103970.0,1.24521246]
[1747053352035,0.21159038,103990.0,103980.0,0.0389]
[1747053352241,0.2308228,103990.0,103980.0,0.26384617]
[1747053352461,0.22120705,103990.0,103980.0,0.26384617]
[1747053352762,0.22120705,103990.0,103980.0,0.28274617]
[1747053352959,0.22120705,103990.0,103980.0,0.4387]
[1747053353637,0.21159102,103990.0,103980.0,0.4387]
[1747053353846,0.20130122,104000.0,103990.0,0.0293163]
[1747053354046,0.23014587,104000.0,103990.0,0.28324617]
[1747053354286,0.23976125,104000.0,103990.0,0.28324617]
[1747053354702,0.23076772,104000.0,103990.0,0.28324617]
[1747053354924,0.22115299,104000.0,103990.0,0.28324617]
[1747053355138,0.21153817,104000.0,103990.0,0.28324617]
[1747053355347,0.21353761,104000.0,103990.0,0.28324617]
[1747053355554,0.2231529,104000.0,103990.0,0.0392]
[1747053355758,0.2231529,104000.0,103990.0,0.28324617]
[1747053356198,0.2241529,104000.0,103990.0,0.28324617]
[1747053356611,0.2241529,104000.0,103990.0,0.48518856]
[1747053356813,0.2241529,104000.0,103990.0,0.28324617]
[1747053357012,0.2241529,104000.0,103990.0,0.29286247]
[1747053357136,0.2241529,104000.0,103990.0,0.0488163]
[1747053357344,0.2241529,104000.0,103990.0,0.61854541]
[1747053357768,0.2241529,104000.0,103990.0,0.6089292]
[1747053358204,0.2241529,104000.0,103990.0,0.5993129]
[1747053358450,0.2241529,104000.0,103990.0,0.4392]
[1747053358655,0.21453808,104000.0,103990.0,0.5993129]
[1747053362813,0.20492298,104000.0,103990.0,0.4197]
[1747053363643,0.21453799,104000.0,103990.0,0.4475163]
[1747053363852,0.21453799,104000.0,103990.0,0.79033908]
[1747053364071,0.21453799,104000.0,103990.0,0.80957159]
[1747053364236,0.21453799,104000.0,103990.0,0.79995538]
[1747053364653,0.22415272,104000.0,103990.0,0.79995538]
[1747053364838,0.22415272,104000.0,103990.0,0.6076292]
[1747053365025,0.22415272,104000.0,103990.0,0.80957159]
[1747053365992,0.22415272,104000.0,103990.0,0.79995538]
[1747053367052,0.22415272,104000.0,103990.0,0.80957159]
[1747053367269,0.22415272,104000.0,103990.0,0.6076292]
[1747053367709,0.22415272,104000.0,103990.0,0.80957159]
[1747053367884,0.22415272,104000.0,103990.0,0.5980129]
[1747053368088,0.22415272,104000.0,103990.0,0.6076292]
[1747053368485,0.003,104000.0,103990.0,0.80957159]
[1747053368712,0.003,104000.0,103990.0,1.16880318]
[1747053368905,0.01261473,104000.0,103990.0,1.16880318]
[1747053369323,0.003,104000.0,103990.0,1.34345693]
[1747053369489,0.003,104000.0,103990.0,2.30904493]
[1747053369689,0.003,104000.0,103990.0,1.67681093]
[1747053369950,0.003,104000.0,103990.0,1.60321093]
[1747053370989,0.003,104000.0,103990.0,1.44309803]
[1747053371408,0.01261464,104000.0,103990.0,1.39930503]
[1747053371821,0.003,104000.0,103990.0,1.39930503]
[1747053371947,0.003,104000.0,103990.0,1.32686303]
[1747053372155,0.003,104000.0,103990.0,1.18334403]
[1747053372354,0.003,104000.0,103990.0,1.34345693]
[1747053372934,0.003,104000.0,103990.0,1.18334403]
[1747053373326,0.23376763,104000.0,103990.0,1.02185302]
[1747053373526,0.23376744,104000.0,103990.0,1.3429555]
[1747053373744,0.21453798,104000.0,103990.0,0.7779]
[1747053373954,0.21453798,104000.0,103990.0,0.7496163]
[1747053374124,0.21453798,104000.0,103990.0,0.9881586]
[1747053375364,0.21453798,104000.0,103990.0,0.97854248]
[1747053375537,0.21453798,104000.0,103990.0,1.23211171]
[1747053375766,0.003,104000.0,103990.0,1.2513433]
[1747053375970,0.003,104000.0,103990.0,1.26588415]
[1747053376178,0.003,104000.0,103990.0,2.58242515]
[1747053376448,0.003,104000.0,103990.0,2.55931815]
[1747053376598,0.003,104000.0,103990.0,2.65517245]
[1747053377056,0.002,104000.0,103990.0,2.65517245]
[1747053377714,0.02122743,104010.0,104000.0,0.56115272]
[1747053377937,0.01161362,104010.0,104000.0,0.84120574]
[1747053378186,0.02122743,104010.0,104000.0,0.84120574]
[1747053378398,0.002,104010.0,104000.0,1.20439876]
[1747053378620,0.002,104010.0,104000.0,3.92033291]
[1747053380240,0.002,104010.0,104000.0,4.33557291]
[1747053380693,0.003,104010.0,104000.0,4.33557291]
[1747053381162,0.003,104010.0,104000.0,4.70557291]
[1747053381538,0.002,104010.0,104000.0,4.70557291]
[1747053381734,0.002,104010.0,104000.0,4.70657291]
[1747053383020,0.002,104010.0,104000.0,4.72098957]
[1747053383235,0.002,104010.0,104000.0,4.35098957]
[1747053384400,0.002,104010.0,104000.0,4.35094957]
[1747053386456,0.002,104010.0,104000.0,4.32094957]
[1747053386920,0.002,104010.0,104000.0,4.72094957]
[1747053388474,0.002,104010.0,104000.0,4.72090957]
[1747053389152,0.002,104010.0,104000.0,4.37090957]
[1747053389580,0.002,104010.0,104000.0,3.06412355]
[1747053389813,0.002,104010.0,104000.0,3.42707657]
[1747053390042,0.002,104010.0,104000.0,3.40707657]
[1747053392717,0.002,104010.0,104000.0,3.43592157]
[1747053393152,0.002,104010.0,104000.0,3.45592157]
[1747053393373,0.002,104030.0,104020.0,0.23565104]
[1747053393585,0.002,104030.0,104020.0,4.08936136]
[1747053394059,0.002,104030.0,104020.0,4.11820136]
[1747053394501,0.2,104040.0,104030.0,0.61022979]
[1747053394720,0.2004897,104040.0,104030.0,3.31703313]
[1747053394938,0.2004897,104040.0,104030.0,2.05138211]
[1747053395143,0.2004897,104040.0,104030.0,2.45138211]
[1747053395774,0.2004897,104040.0,104030.0,1.59399013]
[1747053395998,0.2004897,104040.0,104030.0,1.35003711]
[1747053396218,0.20040164,104040.0,104030.0,2.74168465]
[1747053396798,0.20040164,104040.0,104030.0,2.74268465]
[1747053398006,0.20040164,104040.0,104030.0,2.98663767]
[1747053399029,0.20040164,104040.0,104030.0,3.11268465]
[1747053399995,0.20040164,104040.0,104030.0,3.35663767]
[1747053401254,0.19993364,104040.0,104030.0,3.35663767]
[1747053402326,0.002,104050.0,104040.0,0.61110854]
[1747053402524,0.2046867,104070.0,104060.0,0.56102538]
[1747053402672,0.22330751,104070.0,104060.0,0.81458759]
[1747053402879,0.23291587,104070.0,104060.0,0.8049784]
[1747053403089,0.22330751,104070.0,104060.0,1.2049784]
[1747053403296,0.20409116,104070.0,104060.0,1.22419687]
[1747053403499,0.21369943,104070.0,104060.0,1.21458768]
[1747053403752,0.21369943,104070.0,104060.0,1.2049784]
[1747053404124,0.214344,104070.0,104060.0,1.18575956]
[1747053404337,0.214344,104070.0,104060.0,1.20497859]
[1747053404546,0.00494894,104070.0,104060.0,1.23318778]
[1747053404811,0.21634372,104070.0,104060.0,1.22357859]
[1747053405020,0.21634372,104070.0,104060.0,1.21396912]
[1747053405226,0.21634372,104070.0,104060.0,1.19536912]
[1747053405434,0.22595226,104070.0,104060.0,1.18575956]
[1747053405644,0.23454372,104070.0,104060.0,1.19536912]
[1747053406060,0.23454372,104070.0,104060.0,1.20497859]
[1747053406269,0.22595226,104070.0,104060.0,1.20375956]
[1747053406489,0.20673536,104070.0,104060.0,1.21336921]
[1747053406694,0.21634363,104070.0,104060.0,1.46073877]
[1747053406911,0.22531342,104070.0,104060.0,1.47034824]
[1747053407120,0.23492187,104070.0,104060.0,1.46073877]
[1747053407320,0.23492187,104070.0,104060.0,1.44273868]
[1747053408675,0.22595208,104070.0,104060.0,1.45234805]
[1747053408859,0.21634363,104070.0,104060.0,1.43312921]
[1747053409111,0.22595208,104070.0,104060.0,1.47124824]
[1747053409605,0.25326072,104070.0,104060.0,1.43312903]
[1747053409799,0.27326072,104070.0,104060.0,1.4427385]
[1747053409953,0.27326072,104070.0,104060.0,1.43312903]
[1747053410160,0.27326072,104070.0,104060.0,1.22171302]
[1747053410361,0.27326137,104070.0,104060.0,1.42351947]
[1747053410740,0.26365264,104070.0,104060.0,1.18917582]
[1747053411342,0.26365264,104070.0,104060.0,1.18917592]
[1747053411774,0.25404465,104070.0,104060.0,0.74]
[1747053412111,0.25404465,104070.0,104060.0,0.4]
[1747053412743,0.26301414,104070.0,104060.0,0.4]
[1747053412922,0.60282146,104070.0,104060.0,0.4]
[1747053413195,0.35886844,104070.0,104060.0,0.4]
[1747053413920,0.60282146,104070.0,104060.0,0.4]
[1747053414146,0.01922216,104040.0,104030.0,0.4873867]
[1747053414423,0.22106741,104040.0,104030.0,0.37823894]
[1747053414627,0.00961094,104040.0,104030.0,1.34296692]
[1747053414829,0.22106732,104040.0,104030.0,1.34296701]
[1747053415062,0.23067891,104040.0,104030.0,1.3429671]
[1747053415271,0.23067882,104040.0,104030.0,1.10862613]
[1747053415484,0.23067882,104040.0,104030.0,1.08940194]
[1747053415695,0.24645666,104040.0,104030.0,0.75139254]
[1747053415904,0.24645666,104040.0,104030.0,0.76300515]
[1747053416111,0.24645666,104040.0,104030.0,0.75339254]
[1747053416320,0.24645666,104040.0,104030.0,0.95525719]
[1747053416535,0.24645666,104040.0,104030.0,0.74939254]
[1747053417219,0.24645666,104040.0,104030.0,0.95125728]
[1747053417426,0.24645666,104040.0,104030.0,0.9608697]
[1747053417628,0.24645666,104040.0,104030.0,0.97048203]
[1747053417849,0.23684488,104040.0,104030.0,0.98009427]
[1747053418044,0.23684488,104040.0,104030.0,0.98970632]
[1747053418045,0.23786714,104040.0,104030.0,0.98970632]
[1747053418282,0.24747864,104040.0,104030.0,0.98009427]
[1747053418486,0.22825573,104040.0,104030.0,0.99070586]
[1747053418718,0.23786704,104040.0,104030.0,0.9810939]
[1747053418935,0.24747863,104040.0,104030.0,0.96186952]
[1747053419151,0.23786704,104040.0,104030.0,0.97148166]
[1747053419361,0.24747863,104040.0,104030.0,0.97148166]
[1747053419587,0.23786704,104040.0,104030.0,0.98109362]
[1747053419809,0.23786704,104040.0,104030.0,0.98109371]
[1747053420023,0.23786704,104040.0,104030.0,0.96186952]
[1747053420240,0.24747863,104040.0,104030.0,0.57148166]
[1747053420468,0.23786704,104040.0,104030.0,0.58109371]
[1747053420693,0.24747863,104040.0,104030.0,0.57148166]
[1747053420964,0.24774015,104050.0,104030.0,1.24132162]
[1747053421210,0.01858539,104050.0,104040.0,0.46502108]
[1747053421442,0.23002126,104050.0,104040.0,0.48424325]
[1747053421673,0.21080076,104050.0,104040.0,0.45540986]
[1747053421894,0.23002144,104050.0,104040.0,0.4746323]
[1747053422113,0.23065674,104050.0,104040.0,0.21145684]
[1747053422340,0.21145573,104040.0,104030.0,1.23386897]
[1747053422565,0.00961085,104040.0,104030.0,1.21606897]
[1747053423165,0.00961085,104040.0,104030.0,1.23266897]
[1747053423374,0.22873596,104050.0,104040.0,0.21145684]
[1747053423624,0.22104663,104050.0,104040.0,0.55145684]
[1747053424050,0.23065739,104050.0,104040.0,0.54184543]
[1747053424271,0.21143541,104050.0,104040.0,0.56106815]
[1747053424489,0.02883015,104050.0,104040.0,0.83163221]
[1747053424735,0.24803417,104060.0,104050.0,0.20182604]
[1747053424967,0.21143523,104050.0,104040.0,0.83902053]
[1747053425211,0.22104553,104050.0,104040.0,0.83902053]
[1747053425441,0.01921995,104050.0,104040.0,0.83902053]
[1747053425866,0.22204543,104050.0,104040.0,0.83902053]
[1747053426296,0.23165582,104050.0,104040.0,0.83902053]
[1747053426505,0.22204543,104050.0,104040.0,0.49902053]
[1747053426720,0.001,104050.0,104040.0,0.49902053]
[1747053426932,0.002,104050.0,104040.0,0.49902053]
[1747053427755,0.01160993,104050.0,104040.0,0.49902053]
[1747053427962,0.01060993,104050.0,104040.0,0.49902053]
[1747053428176,0.20282521,104050.0,104040.0,0.49902053]
[1747053428387,0.01060993,104050.0,104040.0,0.83902053]
[1747053428621,0.02021995,104050.0,104040.0,1.24002053]
[1747053428833,0.01921995,104050.0,104040.0,1.24002053]
[1747053429465,0.21144872,104060.0,104050.0,0.20182604]
[1747053429681,0.009609,104060.0,104050.0,0.50009928]
[1747053429929,0.22332201,104070.0,104060.0,0.20180664]
[1747053430158,0.04075231,104070.0,104060.0,0.22102566]
[1747053430413,0.04075193,104070.0,104060.0,0.85536931]
[1747053430613,0.25214782,104070.0,104060.0,0.89198797]
[1747053430830,0.25214782,104070.0,104060.0,0.63842576]
[1747053431067,0.25214865,104070.0,104060.0,0.63063504]
[1747053431476,0.24317036,104070.0,104060.0,0.62102576]
[1747053431769,0.23356219,104070.0,104060.0,0.62102576]
[1747053432038,0.25284501,104070.0,104060.0,0.4]
[1747053432298,0.49679803,104070.0,104060.0,0.4]
[1747053432590,0.60162978,104070.0,104060.0,0.4]
[1747053433083,0.58802978,104070.0,104060.0,0.4]
[1747053433496,0.34407676,104070.0,104060.0,0.4]
[1747053433719,0.34507676,104070.0,104060.0,0.4]
[1747053434521,0.58902978,104070.0,104060.0,0.4]
[1747053434735,0.22863615,104050.0,104040.0,0.342]
[1747053435164,0.22863615,104050.0,104040.0,0.742]
[1747053435389,0.22863615,104050.0,104040.0,0.93423375]
[1747053435521,0.22863615,104050.0,104040.0,0.94384534]
[1747053436203,0.22863615,104050.0,104040.0,0.94484543]
[1747053436412,0.21143615,104050.0,104040.0,0.95445693]
[1747053437241,0.21143615,104050.0,104040.0,0.95445702]
[1747053437454,0.21143615,104050.0,104040.0,0.99207974]
[1747053437654,0.23549101,104060.0,104050.0,0.21143652]
[1747053437655,0.23771022,104060.0,104050.0,0.21143652]
[1747053437865,0.01922004,104050.0,104040.0,1.23480893]
[1747053438078,0.02883043,104050.0,104040.0,1.23480893]
[1747053438913,0.23065619,104050.0,104040.0,1.23480949]
[1747053439123,0.23065619,104050.0,104040.0,1.24442053]
[1747053439333,0.02883043,104050.0,104040.0,1.24442053]
[1747053439549,0.038441,104050.0,104040.0,1.24442053]
[1747053439722,0.02883043,104050.0,104040.0,1.24442053]
[1747053439932,0.23065628,104050.0,104040.0,1.24442053]
[1747053440344,0.22104571,104050.0,104040.0,1.24442053]
[1747053440684,0.02883043,104050.0,104040.0,1.24442053]
[1747053440893,0.23065628,104050.0,104040.0,1.24442053]
[1747053441259,0.03844072,104050.0,104040.0,1.24442053]
[1747053441430,0.02883024,104050.0,104040.0,1.24442053]
[1747053441652,0.24026639,104050.0,104040.0,1.24442053]
[1747053441854,0.24026713,104050.0,104040.0,1.24442062]
[1747053442012,0.23065646,104050.0,104040.0,1.25403166]
[1747053442217,0.23065646,104050.0,104040.0,1.24442062]
[1747053442428,0.23065711,104050.0,104040.0,0.97163375]
[1747053442660,0.22104691,104050.0,104040.0,0.97285684]
[1747053442859,0.22104691,104050.0,104040.0,0.96324543]
[1747053443060,0.22104691,104050.0,104040.0,0.98246833]
[1747053443325,0.22104691,104050.0,104040.0,0.99085702]
[1747053443540,0.22104691,104050.0,104040.0,1.00046843]
[1747053444579,0.22104691,104050.0,104040.0,0.98246852]
[1747053445195,0.21143615,104050.0,104040.0,1.01909106]
[1747053445377,0.22104691,104050.0,104040.0,1.01909124]
[1747053446000,0.22104691,104050.0,104040.0,1.01909078]
[1747053446165,0.21143615,104050.0,104040.0,1.26304334]
[1747053446366,0.23065758,104050.0,104040.0,1.25343221]
[1747053446568,0.22104728,104050.0,104040.0,1.23420968]
[1747053446769,0.22104728,104050.0,104040.0,1.24382099]
[1747053446969,0.22104728,104050.0,104040.0,0.99986797]
[1747053447211,0.22104728,104050.0,104040.0,1.24382099]
[1747053447440,0.22104728,104050.0,104040.0,0.99986797]
[1747053447751,0.22104728,104050.0,104040.0,0.99025666]
[1747053448081,0.22104728,104050.0,104040.0,0.99986797]
[1747053448492,0.22104728,104050.0,104040.0,0.99025666]
[1747053448883,0.22104728,104050.0,104040.0,0.97285666]
[1747053449087,0.22104728,104050.0,104040.0,0.95445666]
[1747053449290,0.22104728,104050.0,104040.0,0.98176797]
[1747053449929,0.22104728,104050.0,104040.0,0.97215666]
[1747053450561,0.21143671,104050.0,104040.0,0.96254525]
[1747053450786,0.20182604,104050.0,104040.0,0.95445693]
[1747053451002,0.20182604,104050.0,104040.0,0.96406834]
[1747053451226,0.21082485,104050.0,104040.0,0.743]
[1747053451546,0.34217915,104050.0,104040.0,0.403]
[1747053451640,0.22902429,104050.0,104040.0,0.60484525]
[1747053451889,0.23965546,104050.0,104040.0,0.62174525]
[1747053452133,0.00899881,104050.0,104040.0,0.90262062]
[1747053452374,0.02821922,104050.0,104040.0,1.24262062]
[1747053452591,0.22104617,104050.0,104040.0,1.23300958]
[1747053452805,0.23065684,104050.0,104040.0,1.2426208]
[1747053453018,0.23065684,104050.0,104040.0,1.23300958]
[1747053453243,0.19221356,104060.0,104050.0,0.21143652]
[1747053453454,0.23063392,104060.0,104050.0,0.50029984]
[1747053453666,0.23002426,104060.0,104050.0,0.51952015]
[1747053453875,0.23002426,104060.0,104050.0,0.25634682]
[1747053454081,0.23963391,104060.0,104050.0,0.24673652]
[1747053454285,0.24924365,104060.0,104050.0,0.25634682]
[1747053454523,0.23963465,104060.0,104050.0,0.24673652]
[1747053454724,0.23963465,104060.0,104050.0,0.25634691]
[1747053455080,0.24063465,104060.0,104050.0,0.65634691]
[1747053455585,0.24163465,104060.0,104050.0,0.65634691]
[1747053457038,0.24163465,104060.0,104050.0,0.66595721]
[1747053457234,0.24163465,104060.0,104050.0,0.65634691]
[1747053457425,0.24163521,104060.0,104050.0,0.4]
[1747053457735,0.24922584,104060.0,104050.0,0.4]
[1747053458299,0.24922584,104060.0,104050.0,0.61143671]
[1747053458626,0.22241619,104060.0,104050.0,0.4]
[1747053459662,0.23911619,104060.0,104050.0,0.4]
[1747053460492,0.23911619,104060.0,104050.0,0.60182604]
[1747053460694,0.22241619,104060.0,104050.0,0.60182604]
[1747053461030,0.20319661,104060.0,104050.0,0.4]
[1747053464149,0.20319661,104060.0,104050.0,0.62711528]
[1747053464364,0.01099981,104060.0,104050.0,0.89989947]
[1747053464609,0.01099981,104060.0,104050.0,1.23989947]
[1747053465315,0.01473568,104060.0,104050.0,1.23989947]
[1747053465546,0.02495415,104060.0,104050.0,1.23989947]
[1747053465773,0.02495406,104060.0,104050.0,1.23989947]
[1747053466203,0.03456334,104060.0,104050.0,1.23028936]
[1747053466424,0.23636961,104060.0,104050.0,1.23989947]
[1747053466689,0.23636951,104060.0,104050.0,1.23028936]
[1747053466892,0.24597907,104060.0,104050.0,0.97672595]
[1747053467190,0.21715197,104060.0,104050.0,0.7575]
[1747053467411,0.21715197,104060.0,104050.0,0.96893652]
[1747053467570,0.21715197,104060.0,104050.0,0.99584691]
[1747053467772,0.21715151,104060.0,104050.0,0.99584691]
[1747053467979,0.236371,104060.0,104050.0,1.00545721]
[1747053468236,0.2363709,104060.0,104050.0,1.01506741]
[1747053468459,0.22676116,104060.0,104050.0,1.00545674]
[1747053468882,0.22676116,104060.0,104050.0,0.99584654]
[1747053469086,0.22676116,104060.0,104050.0,1.00545674]
[1747053469703,0.22676116,104060.0,104050.0,1.01506685]
[1747053470332,0.22676116,104060.0,104050.0,1.00545674]
[1747053470755,0.21715151,104060.0,104050.0,1.01506685]
[1747053471678,0.22676116,104060.0,104050.0,1.24940976]
[1747053471897,0.22676116,104060.0,104050.0,1.00545674]
[1747053473472,0.22676116,104060.0,104050.0,1.01506685]
[1747053473473,0.21715151,104060.0,104050.0,1.01506685]
[1747053475422,0.21715151,104060.0,104050.0,1.00545674]
[1747053475860,0.22676125,104060.0,104050.0,0.99584654]
[1747053476081,0.21715197,104060.0,104050.0,0.7748]
[1747053476287,0.21715197,104060.0,104050.0,0.74]
[1747053476504,0.21715197,104060.0,104050.0,0.94182595]
[1747053476717,0.22676135,104060.0,104050.0,0.99414664]
[1747053476945,0.21715151,104060.0,104050.0,1.01336695]
[1747053477152,0.22676125,104060.0,104050.0,0.98453643]
[1747053477605,0.22676125,104060.0,104050.0,0.99414682]
[1747053478272,0.23637109,104060.0,104050.0,0.99414682]
[1747053478698,0.23637109,104060.0,104050.0,0.97492595]
[1747053478912,0.23637109,104060.0,104050.0,0.99414682]
[1747053479079,0.23637109,104060.0,104050.0,1.00375712]
[1747053479490,0.00573587,104060.0,104050.0,1.24770995]
[1747053479672,0.03456362,104060.0,104050.0,1.00375693]
[1747053479874,0.23636997,104060.0,104050.0,0.99414682]
[1747053480099,0.04417308,104060.0,104050.0,1.00375693]
[1747053481228,0.03456352,104060.0,104050.0,1.00375693]
[1747053481454,0.23636997,104060.0,104050.0,1.00375693]
[1747053482051,0.22676143,104060.0,104050.0,0.7731]
[1747053482277,0.23355206,104060.0,104050.0,0.4]
[1747053482747,0.22104635,104050.0,104040.0,0.6048791]
[1747053482967,0.01922032,104050.0,104040.0,0.6048791]
[1747053483194,0.01360343,104050.0,104040.0,0.84883212]
[1747053483437,0.02321373,104050.0,104040.0,0.84883212]
[1747053483679,0.00399341,104050.0,104040.0,1.24883212]
[1747053485498,0.00399341,104050.0,104040.0,1.24983212]
[1747053487832,0.29755582,104080.0,104070.0,0.21139589]
[1747053488065,0.38776486,104080.0,104070.0,0.21139607]
[1747053488282,0.00960854,104070.0,104060.0,0.49776075]
[1747053488546,0.01296184,104070.0,104060.0,0.25380773]
[1747053488788,0.01296184,104070.0,104060.0,0.83776075]
[1747053489047,0.01921496,104080.0,104070.0,0.23458716]
[1747053489277,0.24519843,104080.0,104070.0,0.27675302]
[1747053489533,0.22598347,104080.0,104070.0,0.0164]
[1747053489748,0.22136963,104080.0,104070.0,0.0164]
[1747053491361,0.22036963,104080.0,104070.0,0.0164]
[1747053492113,0.22436963,104080.0,104070.0,0.0164]
[1747053492525,0.22536963,104080.0,104070.0,0.0164]
[1747053492729,0.22536963,104080.0,104070.0,0.4164]
[1747053496434,0.22536963,104080.0,104070.0,0.4327]
[1747053496785,0.21576173,104080.0,104070.0,0.4164]
[1747053497245,0.20615374,104080.0,104070.0,0.4]
[1747053498041,0.57666106,104080.0,104070.0,0.4]
[1747053500273,0.33270804,104080.0,104070.0,0.4]
[1747053500716,0.57666106,104080.0,104070.0,0.4]
[1747053500930,0.21141582,104060.0,104050.0,0.3553]
[1747053501165,0.21141582,104060.0,104050.0,0.35534894]
[1747053501386,0.21141582,104060.0,104050.0,0.74004894]
[1747053501619,0.56712314,104060.0,104050.0,0.40004894]
[1747053501838,0.32317012,104060.0,104050.0,0.40004894]
[1747053502265,0.32417012,104060.0,104050.0,0.40004894]
[1747053502491,0.30827012,104060.0,104050.0,0.40004894]
[1747053502909,0.29966075,104060.0,104050.0,0.41624894]
[1747053503733,0.31646075,104060.0,104050.0,0.40004894]
[1747053504410,0.57591377,104060.0,104050.0,0.40004894]
[1747053504877,0.58490588,104060.0,104050.0,0.40004894]
[1747053505589,0.30865258,104060.0,104050.0,0.41534894]
[1747053505811,0.31826223,104060.0,104050.0,0.41534894]
[1747053506054,0.3220623,104060.0,104050.0,0.41534894]
[1747053507130,0.3170623,104060.0,104050.0,0.41534894]
[1747053508173,0.3170623,104060.0,104050.0,0.01534894]
[1747053508384,0.3120623,104060.0,104050.0,0.01534894]
[1747053508610,0.3120623,104060.0,104050.0,0.41534894]
[1747053509049,0.3120623,104060.0,104050.0,0.43214894]
[1747053509272,0.31206249,104060.0,104050.0,0.43214894]
[1747053509482,0.30307038,104060.0,104050.0,0.43214894]
[1747053509712,0.29807038,104060.0,104050.0,0.43214894]
[1747053509911,0.21182509,104060.0,104050.0,0.43214894]
[1747053510125,0.22143483,104060.0,104050.0,0.43214894]
[1747053510348,0.21182564,104060.0,104050.0,0.43214894]
[1747053510763,0.20221617,104060.0,104050.0,0.43214894]
[1747053510976,0.19260661,104060.0,104050.0,0.43214894]
[1747053511581,0.19260661,104060.0,104050.0,0.03214894]
[1747053512121,0.19260661,104060.0,104050.0,0.43214894]
[1747053516307,0.20221608,104060.0,104050.0,0.43214894]
[1747053520190,0.5755234,104060.0,104050.0,4.894e-05]
[1747053520379,0.65208941,104060.0,104050.0,4.894e-05]
[1747053520562,0.66192687,104060.0,104050.0,4.894e-05]
[1747053520770,0.67091146,104060.0,104050.0,4.894e-05]
[1747053521179,0.67091308,104060.0,104050.0,4.894e-05]
[1747053521820,0.66991308,104060.0,104050.0,4.894e-05]
[1747053522165,0.67391308,104060.0,104050.0,4.894e-05]
[1747053522574,0.67291308,104060.0,104050.0,4.894e-05]
[1747053523016,0.67491308,104060.0,104050.0,4.894e-05]
[1747053523254,0.59834707,104060.0,104050.0,4.894e-05]
[1747053524931,0.58936086,104060.0,104050.0,4.894e-05]
[1747053525121,0.59834129,104060.0,104050.0,4.894e-05]
[1747053526492,0.59834282,104060.0,104050.0,4.894e-05]
[1747053533764,0.3543898,104060.0,104050.0,4.894e-05]
[1747053534254,0.58194282,104060.0,104050.0,4.894e-05]
[1747053536700,0.59904282,104060.0,104050.0,4.894e-05]
[1747053537550,0.93904282,104060.0,104050.0,4.894e-05]
[1747053537765,0.93904121,104060.0,104050.0,4.894e-05]
[1747053538226,0.93904126,104060.0,104050.0,4.894e-05]
[1747053541967,0.92194126,104060.0,104050.0,4.894e-05]
[1747053543758,0.95248211,104060.0,104050.0,4.894e-05]
[1747053544189,0.96248211,104060.0,104050.0,4.894e-05]
[1747053544767,0.95350171,104060.0,104050.0,4.894e-05]
[1747053545711,0.96350171,104060.0,104050.0,4.894e-05]
[1747053550515,0.9724846,104060.0,104050.0,4.894e-05]
[1747053550744,0.9564846,104060.0,104050.0,4.894e-05]
[1747053551000,0.90484375,104060.0,104050.0,0.01694894]
[1747053551215,0.66089073,104060.0,104050.0,0.03364894]
[1747053551665,0.90484375,104060.0,104050.0,0.03364894]
[1747053551908,0.90484375,104060.0,104050.0,0.01694894]
[1747053552120,0.90484375,104060.0,104050.0,4.894e-05]
[1747053552331,0.90484375,104060.0,104050.0,0.01644894]
[1747053553532,0.31105327,104060.0,104050.0,0.03204894]
[1747053554183,0.31106844,104060.0,104050.0,0.03204894]
[1747053555282,0.21521414,104060.0,104050.0,0.03204894]
[1747053555626,0.20560467,104060.0,104050.0,0.03204894]
[1747053556291,0.20560509,104060.0,104050.0,0.03204894]
[1747053557214,0.20560509,104060.0,104050.0,0.43204894]
[1747053559410,0.44955811,104060.0,104050.0,0.43204894]
[1747053559619,0.54541241,104060.0,104050.0,0.43204894]
[1747053560865,0.30145939,104060.0,104050.0,0.43204894]
[1747053564072,0.30145939,104060.0,104050.0,0.43204894]
[1747053566956,0.30145939,104060.0,104050.0,0.03204894]
[1747053567368,0.30145939,104060.0,104050.0,0.43204894]
[1747053568788,0.29246091,104060.0,104050.0,0.43204894]
[1747053569010,0.92118796,104060.0,104040.0,0.002]
[1747053569246,0.58807402,104050.0,104040.0,0.002]
[1747053569747,0.61504057,104050.0,104040.0,0.002]
[1747053569956,0.59834057,104050.0,104040.0,0.002]